fUSD/lending_fUSD_20240217
["ID","MTS","AMOUNT","RATE_DAILY","PERIOD"]
[314296398,1708161063020,-563.05,0.00050958,2]
[314296399,1708161063032,-500.0,0.00050958,60]
[314296400,1708161063042,-500.0,0.00050958,60]
[314296401,1708161063051,-415.42552223,0.00050958,60]
[314296402,1708161063061,-500.0,0.00050958,60]
[314296403,1708161063071,-516.7,0.00050958,60]
[314296404,1708161063081,-500.0,0.00050958,2]
[314296405,1708161063090,-582.86141598,0.00050958,60]
[314296406,1708161063099,-500.0,0.00050958,60]
[314296407,1708161063109,-500.0,0.00050958,60]
[314296408,1708161063118,-500.0,0.00050958,60]
[314296409,1708161063128,-1007.92,0.00050958,2]
[314296410,1708161063137,-500.0,0.00050958,60]
[314296411,1708161063147,-473.2,0.00050958,60]
[314296412,1708161063156,-500.0,0.00050958,60]
[314296413,1708161063165,-500.0,0.00050958,60]
[314296414,1708161063174,-500.0,0.00050958,60]
[314296415,1708161063184,-500.0,0.00050958,60]
[314296416,1708161063194,-500.0,0.00050958,60]
[314296417,1708161063204,-158.53932835,0.00050958,60]
[314296418,1708161063214,-500.0,0.00050958,60]
[314296419,1708161063223,-150.0,0.00050958,60]
[314296420,1708161063233,-500.0,0.00050958,2]
[314296421,1708161063241,-500.0,0.00050958,60]
[314296422,1708161063250,-500.0,0.00050958,60]
[314296423,1708161063259,-500.0,0.00050958,60]
[314296424,1708161063268,-500.0,0.00050958,60]
[314296425,1708161063278,-500.0,0.00050958,60]
[314296426,1708161063288,-500.0,0.00050958,60]
[314296427,1708161063297,-500.0,0.00050958,60]
[314296428,1708161063306,-500.0,0.00050958,60]
[314296429,1708161063316,-500.0,0.00050958,60]
[314296430,1708161063325,-500.0,0.00050958,60]
[314296431,1708161063334,-503.12,0.00050958,60]
[314296432,1708161063343,-500.0,0.00050958,60]
[314296433,1708161063353,-500.0,0.00050958,60]
[314296434,1708161063362,-500.0,0.00050958,60]
[314296435,1708161063371,-500.0,0.00050958,60]
[314296436,1708161063380,-741.18,0.00050958,60]
[314296437,1708161063390,-500.0,0.00050958,60]
[314296438,1708161063399,-500.0,0.00050958,60]
[314296439,1708161063412,-500.0,0.00050958,7]
[314296440,1708161063421,-500.0,0.00050958,60]
[314296441,1708161063430,-500.0,0.00050958,60]
[314296442,1708161063438,-323.4775181,0.00050958,60]
[314296443,1708161063447,-500.0,0.00050958,60]
[314296444,1708161063457,-1045.89,0.00050958,60]
[314296445,1708161063466,-541.49,0.00050958,60]
[314296446,1708161063475,-500.0,0.00050958,60]
[314296447,1708161063484,-500.0,0.00050958,60]
[314296448,1708161063493,-500.0,0.00050958,60]
[314296449,1708161063502,-561.32,0.00050958,60]
[314296450,1708161063512,-2830.79,0.00050958,60]
[314296451,1708161063520,-1347.86,0.00050958,60]
[314296452,1708161063530,-500.0,0.00050958,60]
[314296453,1708161063539,-1283.95,0.00050958,60]
[314296454,1708161063548,-4644.83,0.00050958,60]
[314296455,1708161063557,-500.0,0.00050958,60]
[314296456,1708161063566,-500.0,0.00050958,60]
[314296457,1708161063576,-500.0,0.00050958,60]
[314296458,1708161063585,-793.13,0.00050958,60]
[314296459,1708161063594,-472.46893338,0.00050958,60]
[314296460,1708161063602,-500.0,0.00050958,60]
[314296461,1708161063612,-500.0,0.00050958,60]
[314296462,1708161063707,-500.0,0.00050958,60]
[314296463,1708161063716,-500.0,0.00050958,60]
[314296464,1708161063725,-500.0,0.00050958,60]
[314296465,1708161063734,-500.0,0.00050958,60]
[314296466,1708161063744,-1438.01,0.00050958,60]
[314296467,1708161063753,-500.0,0.00050958,60]
[314296468,1708161063763,-2910.47,0.00050958,60]
[314296469,1708161063771,-500.0,0.00050958,60]
[314296470,1708161063781,-500.0,0.00050958,60]
[314296471,1708161063791,-500.0,0.00050958,60]
[314296472,1708161063800,-500.0,0.00050958,60]
[314296473,1708161063809,-1068.24,0.00050958,14]
[314296474,1708161063818,-500.0,0.00050958,60]
[314296475,1708161063828,-195.90240329,0.00050958,60]
[314296476,1708161063837,-548.21,0.00050958,60]
[314296477,1708161063846,-500.0,0.00050958,60]
[314296478,1708161063854,-500.0,0.00050958,60]
[314296479,1708161063863,-1670.98,0.00050958,60]
[314296480,1708161063874,-500.0,0.00050958,60]
[314296481,1708161063885,-233.59221271,0.00050958,60]
[314296482,1708161063894,-695.79,0.00050958,60]
[314296483,1708161063903,-792.89,0.00050958,60]
[314296484,1708161063914,-271.01725154,0.00050958,60]
[314296485,1708161063923,-1476.07,0.00050958,60]
[314296486,1708161063932,-500.0,0.00050958,60]
[314296487,1708161063941,-500.0,0.00050958,60]
[314296488,1708161063951,-500.0,0.00050958,60]
[314296489,1708161063961,-500.0,0.00050958,60]
[314296490,1708161063971,-500.0,0.00050958,60]
[314296491,1708161063981,-500.0,0.00050958,60]
[314296492,1708161063990,-500.0,0.00050958,60]
[314296493,1708161064000,-500.0,0.00050958,60]
[314296494,1708161064009,-203.90726346,0.00050958,60]
[314296495,1708161064018,-500.0,0.00050958,60]
[314296496,1708161064029,-836.72,0.00050958,60]
[314296497,1708161064039,-500.0,0.00050958,60]
[314296498,1708161064049,-1928.92,0.00050958,60]
[314296499,1708161064058,-500.0,0.00050958,60]
[314296500,1708161064068,-500.0,0.00050958,60]
[314296501,1708161064078,-500.0,0.00050958,60]
[314296502,1708161064088,-500.0,0.00050958,60]
[314296503,1708161064097,-500.0,0.00050958,60]
[314296504,1708161064106,-500.0,0.00050958,60]
[314296505,1708161064116,-500.0,0.00050958,60]
[314296506,1708161064125,-1019.43,0.00050958,60]
[314296507,1708161064135,-500.0,0.00050958,60]
[314296508,1708161064144,-500.0,0.00050958,60]
[314296509,1708161064153,-421.74864043,0.00050958,60]
[314296510,1708161064163,-612.61,0.00050958,60]
[314296511,1708161064172,-1766.39,0.00050958,60]
[314296512,1708161064181,-500.0,0.00050958,60]
[314296513,1708161064191,-500.0,0.00050958,60]
[314296514,1708161064199,-1027.9,0.00050958,60]
[314296515,1708161064208,-570.48,0.00050958,60]
[314296516,1708161064218,-500.0,0.00050958,60]
[314296517,1708161064227,-1285.81,0.00050958,60]
[314296518,1708161064237,-500.0,0.00050958,60]
[314296519,1708161064246,-1042.06,0.00050958,60]
[314296520,1708161064255,-261.19416772,0.00050958,60]
[314296521,1708161064264,-500.0,0.00050958,60]
[314296522,1708161064273,-676.06,0.00050958,60]
[314296523,1708161064284,-500.0,0.00050958,60]
[314296524,1708161064293,-636.2,0.00050958,60]
[314296525,1708161064302,-951.44,0.00050958,60]
[314296526,1708161064311,-10594.44,0.00050958,60]
[314296527,1708161064320,-500.0,0.00050958,60]
[314296528,1708161064329,-500.0,0.00050958,60]
[314296529,1708161064338,-500.0,0.00050958,60]
[314296530,1708161064347,-611.77321654,0.00050958,60]
[314296531,1708161064357,-200.0,0.00050979,30]
[314296532,1708161064366,-200.0,0.00050979,30]
[314296533,1708161064375,-3264.90727852,0.00051,15]
[314296534,1708161064384,-271.39,0.00051005,2]
[314296535,1708161064393,-262.62270052,0.0005102,2]
[314296536,1708161064402,-151.98,0.00051142,2]
[314296537,1708161064411,-197.021777,0.00051148,101]
[314296538,1708161064420,-432.0,0.00051169,30]
[314296539,1708161064429,-10000.0,0.000512,25]
[314296540,1708161064438,-3504.26739857,0.00051205,14]
[314296541,1708161064447,-500.0,0.00051232,60]
[314296542,1708161064458,-574.91,0.00051232,60]
[314296543,1708161064467,-500.0,0.00051232,60]
[314296544,1708161064477,-500.0,0.00051232,60]
[314296545,1708161064486,-500.0,0.00051232,2]
[314296546,1708161064495,-500.0,0.00051232,60]
[314296547,1708161064503,-500.0,0.00051232,60]
[314296548,1708161064513,-535.7,0.00051232,60]
[314296549,1708161064522,-500.0,0.00051232,2]
[314296550,1708161064533,-500.0,0.00051232,60]
[314296551,1708161064542,-500.0,0.00051232,60]
[314296552,1708161064551,-500.0,0.00051232,60]
[314296553,1708161064561,-500.0,0.00051232,60]
[314296554,1708161064570,-500.0,0.00051232,2]
[314296555,1708161064579,-563.05,0.00051232,2]
[314296556,1708161064587,-500.0,0.00051232,60]
[314296557,1708161064597,-500.0,0.00051232,60]
[314296558,1708161064610,-500.0,0.00051232,60]
[314296559,1708161064619,-516.7,0.00051232,60]
[314296560,1708161064628,-500.0,0.00051232,2]
[314296561,1708161064637,-500.0,0.00051232,60]
[314296562,1708161064646,-500.0,0.00051232,60]
[314296563,1708161064655,-500.0,0.00051232,60]
[314296564,1708161064664,-1007.92,0.00051232,2]
[314296565,1708161064673,-500.0,0.00051232,60]
[314296566,1708161064683,-500.0,0.00051232,60]
[314296567,1708161064692,-500.0,0.00051232,60]
[314296568,1708161064702,-434.13,0.00051232,60]
[314296569,1708161064710,-500.0,0.00051232,60]
[314296570,1708161064719,-500.0,0.00051232,60]
[314296571,1708161064729,-500.0,0.00051232,60]
[314296572,1708161064738,-150.0,0.00051232,60]
[314296573,1708161064747,-500.0,0.00051232,2]
[314296574,1708161064756,-500.0,0.00051232,60]
[314296575,1708161064765,-500.0,0.00051232,60]
[314296576,1708161064774,-500.0,0.00051232,60]
[314296577,1708161064785,-500.0,0.00051232,60]
[314296578,1708161064794,-618.32539217,0.00051232,60]
[314296579,1708161064803,-500.0,0.00051232,60]
[314296580,1708161064811,-500.0,0.00051232,60]
[314296581,1708161064820,-500.0,0.00051232,60]
[314296582,1708161064829,-500.0,0.00051232,60]
[314296583,1708161064838,-500.0,0.00051232,60]
[314296584,1708161064847,-503.12,0.00051232,60]
[314296585,1708161064856,-500.0,0.00051232,60]
[314296586,1708161064866,-500.0,0.00051232,60]
[314296587,1708161064879,-500.0,0.00051232,60]
[314296588,1708161064888,-500.0,0.00051232,60]
[314296589,1708161064896,-741.18,0.00051232,60]
[314296590,1708161064907,-500.0,0.00051232,60]
[314296591,1708161064916,-500.0,0.00051232,60]
[314296592,1708161064924,-500.0,0.00051232,7]
[314296593,1708161064934,-500.0,0.00051232,60]
[314296594,1708161064943,-500.0,0.00051232,60]
[314296595,1708161064953,-152.49287195,0.00051232,60]
[314296596,1708161064964,-1045.89,0.00051232,60]
[314296597,1708161064973,-541.49,0.00051232,60]
[314296598,1708161064982,-390.57033283,0.00051232,60]
[314296599,1708161064991,-500.0,0.00051232,60]
[314296600,1708161065000,-500.0,0.00051232,60]
[314296601,1708161065009,-561.32,0.00051232,60]
[314296602,1708161065019,-2830.79,0.00051232,60]
[314296603,1708161065028,-1347.86,0.00051232,60]
[314296604,1708161065037,-500.0,0.00051232,60]
[314296605,1708161065047,-1283.95,0.00051232,60]
[314296606,1708161065057,-4644.83,0.00051232,60]
[314296607,1708161065066,-500.0,0.00051232,60]
[314296608,1708161065075,-500.0,0.00051232,60]
[314296609,1708161065085,-500.0,0.00051232,60]
[314296610,1708161065094,-793.13,0.00051232,60]
[314296611,1708161065104,-500.0,0.00051232,60]
[314296612,1708161065113,-500.0,0.00051232,60]
[314296613,1708161065123,-500.0,0.00051232,60]
[314296614,1708161065132,-500.0,0.00051232,60]
[314296615,1708161065142,-500.0,0.00051232,60]
[314296616,1708161065152,-500.0,0.00051232,60]
[314296617,1708161065162,-1438.01,0.00051232,60]
[314296618,1708161065172,-500.0,0.00051232,60]
[314296619,1708161065181,-2910.47,0.00051232,60]
[314296620,1708161065191,-349.17,0.00051232,60]
[314296621,1708161065200,-500.0,0.00051232,60]
[314296622,1708161065209,-500.0,0.00051232,60]
[314296623,1708161065219,-500.0,0.00051232,60]
[314296624,1708161065229,-1068.24,0.00051232,14]
[314296625,1708161065238,-500.0,0.00051232,60]
[314296626,1708161065248,-548.21,0.00051232,60]
[314296627,1708161065258,-500.0,0.00051232,60]
[314296628,1708161065353,-500.0,0.00051232,60]
[314296629,1708161065364,-1670.98,0.00051232,60]
[314296630,1708161065374,-500.0,0.00051232,60]
[314296631,1708161065383,-695.79,0.00051232,60]
[314296632,1708161065392,-792.89,0.00051232,60]
[314296633,1708161065402,-1476.07,0.00051232,60]
[314296634,1708161065411,-500.0,0.00051232,60]
[314296635,1708161065420,-500.0,0.00051232,60]
[314296636,1708161065429,-500.0,0.00051232,60]
[314296637,1708161065439,-500.0,0.00051232,60]
[314296638,1708161065449,-500.0,0.00051232,60]
[314296639,1708161065460,-500.0,0.00051232,60]
[314296640,1708161065471,-500.0,0.00051232,60]
[314296641,1708161065480,-284.85464846,0.00051232,60]
[314296642,1708161065490,-836.72,0.00051232,60]
[314296643,1708161065499,-500.0,0.00051232,60]
[314296644,1708161065509,-500.0,0.00051232,60]
[314296645,1708161065518,-1928.92,0.00051232,60]
[314296646,1708161065528,-500.0,0.00051232,60]
[314296647,1708161065537,-500.0,0.00051232,60]
[314296648,1708161065547,-500.0,0.00051232,60]
[314296649,1708161065556,-500.0,0.00051232,60]
[314296650,1708161065565,-500.0,0.00051232,60]
[314296651,1708161065575,-500.0,0.00051232,60]
[314296652,1708161065584,-500.0,0.00051232,60]
[314296653,1708161065593,-1019.43,0.00051232,60]
[314296654,1708161065602,-500.0,0.00051232,60]
[314296655,1708161065611,-500.0,0.00051232,60]
[314296656,1708161065621,-612.61,0.00051232,60]
[314296657,1708161065631,-1766.39,0.00051232,60]
[314296658,1708161065640,-500.0,0.00051232,60]
[314296659,1708161065650,-500.0,0.00051232,60]
[314296660,1708161065660,-1027.9,0.00051232,60]
[314296661,1708161065669,-570.48,0.00051232,60]
[314296662,1708161065679,-468.33368887,0.00051232,60]
[314296663,1708161065688,-1285.81,0.00051232,60]
[314296664,1708161065698,-500.0,0.00051232,60]
[314296665,1708161065707,-1042.06,0.00051232,60]
[314296666,1708161065717,-500.0,0.00051232,60]
[314296667,1708161065727,-676.06,0.00051232,60]
[314296668,1708161065737,-500.0,0.00051232,60]
[314296669,1708161065746,-636.2,0.00051232,60]
[314296670,1708161065755,-951.44,0.00051232,60]
[314296671,1708161065765,-10594.44,0.00051232,60]
[314296672,1708161065775,-500.0,0.00051232,60]
[314296673,1708161065785,-500.0,0.00051232,60]
[314296674,1708161065794,-572.06452508,0.00051232,60]
[314296675,1708161065803,-271.39,0.0005125,2]
[314296676,1708161065813,-205.0,0.00051337,24]
[314296677,1708161065822,-158.23203844,0.0005134,60]
[314296678,1708161065832,-214.72550425,0.00051346,11]
[314296679,1708161065841,-254.45312673,0.00051346,11]
[314296680,1708161065851,-150.0,0.00051361,120]
[314296681,1708161065860,-2000.0,0.00051364,7]
[314296682,1708161065877,-200.0,0.00051364,7]
[314296683,1708161065886,-2000.0,0.00051364,7]
[314296684,1708161065896,-200.0,0.00051364,7]
[314296685,1708161065905,-2000.0,0.00051364,7]
[314296686,1708161065916,-200.0,0.00051364,7]
[314296687,1708161065925,-197.021777,0.00051448,101]
[314296688,1708161065935,-219.0,0.00051459,60]
[314296689,1708161065944,-1000.0,0.00051488,4]
[314296690,1708161065955,-3000.0,0.000515,45]
[314296691,1708161065966,-5000.0,0.000515,60]
[314296692,1708161065976,-5000.0,0.000515,60]
[314296693,1708161065985,-3000.0,0.000515,45]
[314296694,1708161065995,-3000.0,0.000515,45]
[314296695,1708161066004,-5000.0,0.000515,60]
[314296696,1708161066014,-3000.0,0.000515,45]
[314296697,1708161066024,-5000.0,0.000515,60]
[314296698,1708161066034,-3000.0,0.000515,45]
[314296699,1708161066043,-3000.0,0.000515,45]
[314296700,1708161066053,-5000.0,0.000515,60]
[314296701,1708161066063,-17515.0,0.000515,120]
[314296702,1708161066073,-3000.0,0.000515,45]
[314296703,1708161066082,-5000.0,0.000515,60]
[314296704,1708161066092,-154.89,0.000515,7]
[314296705,1708161066101,-154.89,0.000515,7]
[314296706,1708161066111,-153.51,0.000515,7]
[314296707,1708161066120,-153.51,0.000515,7]
[314296708,1708161066130,-153.51,0.000515,7]
[314296709,1708161066142,-153.51,0.000515,7]
[314296710,1708161066151,-153.51,0.000515,7]
[314296711,1708161066161,-153.51,0.000515,7]
[314296712,1708161066170,-153.51,0.000515,7]
[314296713,1708161066180,-153.51,0.000515,7]
[314296714,1708161066190,-153.51,0.000515,7]
[314296715,1708161066200,-153.51,0.000515,7]
[314296716,1708161066209,-153.51,0.000515,7]
[314296717,1708161066219,-153.51,0.000515,7]
[314296718,1708161066229,-153.51,0.000515,7]
[314296719,1708161066238,-153.51,0.000515,7]
[314296720,1708161066248,-153.51,0.000515,7]
[314296721,1708161066258,-153.51,0.000515,7]
[314296722,1708161066268,-153.51,0.000515,7]
[314296723,1708161066277,-153.51,0.000515,7]
[314296724,1708161066288,-647.698987,0.00051506,30]
[314296725,1708161066297,-1295.397975,0.00051506,30]
[314296726,1708161066307,-6075.521324,0.00051506,30]
[314296727,1708161066316,-674.63044,0.00051506,120]
[314296728,1708161066326,-586.349728,0.00051506,30]
[314296729,1708161066335,-574.91,0.00051506,60]
[314296730,1708161066345,-500.0,0.00051506,60]
[314296731,1708161066354,-4471.644791,0.00051506,30]
[314296732,1708161066364,-500.0,0.00051506,60]
[314296733,1708161066374,-500.0,0.00051506,2]
[314296734,1708161066384,-500.0,0.00051506,60]
[314296735,1708161066393,-10872.000644,0.00051506,30]
[314296736,1708161066403,-2445.535345,0.00051506,120]
[314296737,1708161066412,-866.066933,0.00051506,30]
[314296738,1708161066422,-225.60349846,0.00051506,60]
[314296739,1708161066431,-535.7,0.00051506,60]
[314296740,1708161066442,-500.0,0.00051506,2]
[314296741,1708161066452,-186.67227979,0.00051506,60]
[314296742,1708161066462,-500.0,0.00051506,60]
[314296743,1708161066472,-500.0,0.00051506,60]
[314296744,1708161066482,-500.0,0.00051506,60]
[314296745,1708161066491,-500.0,0.00051506,2]
[314296746,1708161066501,-563.05,0.00051506,2]
[314296747,1708161066510,-500.0,0.00051506,60]
[314296748,1708161066519,-500.0,0.00051506,60]
[314296749,1708161066528,-500.0,0.00051506,60]
[314296750,1708161066538,-516.7,0.00051506,60]
[314296751,1708161066548,-500.0,0.00051506,2]
[314296752,1708161066558,-500.0,0.00051506,60]
[314296753,1708161066567,-500.0,0.00051506,60]
[314296754,1708161066577,-500.0,0.00051506,60]
[314296755,1708161066586,-1007.92,0.00051506,2]
[314296756,1708161066596,-228.14314416,0.00051506,60]
[314296757,1708161066605,-500.0,0.00051506,60]
[314296758,1708161066615,-500.0,0.00051506,60]
[314296759,1708161066624,-200.5,0.00051506,60]
[314296760,1708161066634,-500.0,0.00051506,60]
[314296761,1708161066644,-500.0,0.00051506,60]
[314296762,1708161066653,-287.27418076,0.00051506,60]
[314296763,1708161066663,-2180.2375,0.00051506,7]
[314296764,1708161066672,-1936.117803,0.00051506,30]
[314296765,1708161066682,-500.0,0.00051506,2]
[314296766,1708161066691,-500.0,0.00051506,60]
[314296767,1708161066700,-155.58994944,0.00051506,60]
[314296768,1708161066709,-500.0,0.00051506,60]
[314296769,1708161066719,-500.0,0.00051506,60]
[314296770,1708161066728,-500.0,0.00051506,60]
[314296771,1708161066737,-500.0,0.00051506,60]
[314296772,1708161066746,-500.0,0.00051506,60]
[314296773,1708161066756,-500.0,0.00051506,60]
[314296774,1708161066765,-503.12,0.00051506,60]
[314296775,1708161066774,-500.0,0.00051506,60]
[314296776,1708161066784,-500.0,0.00051506,60]
[314296777,1708161066794,-500.0,0.00051506,60]
[314296778,1708161066803,-741.18,0.00051506,60]
[314296779,1708161066812,-500.0,0.00051506,60]
[314296780,1708161066821,-500.0,0.00051506,60]
[314296781,1708161066929,-500.0,0.00051506,7]
[314296782,1708161066942,-500.0,0.00051506,60]
[314296783,1708161066953,-500.0,0.00051506,60]
[314296784,1708161066964,-1045.89,0.00051506,60]
[314296785,1708161066974,-541.49,0.00051506,60]
[314296786,1708161066984,-500.0,0.00051506,60]
[314296787,1708161066993,-500.0,0.00051506,60]
[314296788,1708161067004,-561.32,0.00051506,60]
[314296789,1708161067014,-2830.79,0.00051506,60]
[314296790,1708161067024,-1347.86,0.00051506,60]
[314296791,1708161067034,-500.0,0.00051506,60]
[314296792,1708161067044,-1283.95,0.00051506,60]
[314296793,1708161067054,-4644.83,0.00051506,60]
[314296794,1708161067064,-500.0,0.00051506,60]
[314296795,1708161067074,-500.0,0.00051506,60]
[314296796,1708161067085,-500.0,0.00051506,60]
[314296797,1708161067095,-793.13,0.00051506,60]
[314296798,1708161067105,-500.0,0.00051506,60]
[314296799,1708161067115,-500.0,0.00051506,60]
[314296800,1708161067127,-500.0,0.00051506,60]
[314296801,1708161067137,-500.0,0.00051506,60]
[314296802,1708161067148,-260.98208798,0.00051506,60]
[314296803,1708161067159,-500.0,0.00051506,60]
[314296804,1708161067169,-1438.01,0.00051506,60]
[314296805,1708161067180,-500.0,0.00051506,60]
[314296806,1708161067190,-2910.47,0.00051506,60]
[314296807,1708161067201,-500.0,0.00051506,60]
[314296808,1708161067212,-500.0,0.00051506,60]
[314296809,1708161067223,-500.0,0.00051506,60]
[314296810,1708161067234,-500.0,0.00051506,60]
[314296811,1708161067244,-1068.24,0.00051506,14]
[314296812,1708161067254,-548.21,0.00051506,60]
[314296813,1708161067264,-500.0,0.00051506,60]
[314296814,1708161067274,-500.0,0.00051506,60]
[314296815,1708161067285,-1670.98,0.00051506,60]
[314296816,1708161067294,-500.0,0.00051506,60]
[314296817,1708161067304,-695.79,0.00051506,60]
[314296818,1708161067314,-792.89,0.00051506,60]
[314296819,1708161067324,-1476.07,0.00051506,60]
[314296820,1708161067333,-500.0,0.00051506,60]
[314296821,1708161067343,-500.0,0.00051506,60]
[314296822,1708161067353,-500.0,0.00051506,60]
[314296823,1708161067362,-500.0,0.00051506,60]
[314296824,1708161067372,-500.0,0.00051506,60]
[314296825,1708161067382,-500.0,0.00051506,60]
[314296826,1708161067392,-408.56987597,0.00051506,60]
[314296827,1708161067402,-836.72,0.00051506,60]
[314296828,1708161067412,-303.54448397,0.00051506,60]
[314296829,1708161067421,-500.0,0.00051506,60]
[314296830,1708161067431,-1928.92,0.00051506,60]
[314296831,1708161067440,-500.0,0.00051506,60]
[314296832,1708161067450,-500.0,0.00051506,60]
[314296833,1708161067460,-500.0,0.00051506,60]
[314296834,1708161067470,-500.0,0.00051506,60]
[314296835,1708161067480,-500.0,0.00051506,60]
[314296836,1708161067489,-500.0,0.00051506,60]
[314296837,1708161067501,-500.0,0.00051506,60]
[314296838,1708161067511,-1019.43,0.00051506,60]
[314296839,1708161067521,-500.0,0.00051506,60]
[314296840,1708161067530,-500.0,0.00051506,60]
[314296841,1708161067540,-612.61,0.00051506,60]
[314296842,1708161067550,-1766.39,0.00051506,60]
[314296843,1708161067560,-500.0,0.00051506,60]
[314296844,1708161067569,-500.0,0.00051506,60]
[314296845,1708161067579,-1027.9,0.00051506,60]
[314296846,1708161067589,-570.48,0.00051506,60]
[314296847,1708161067599,-1285.81,0.00051506,60]
[314296848,1708161067608,-500.0,0.00051506,60]
[314296849,1708161067618,-1042.06,0.00051506,60]
[314296850,1708161067630,-500.0,0.00051506,60]
[314296851,1708161067639,-676.06,0.00051506,60]
[314296852,1708161067650,-486.09409204,0.00051506,60]
[314296853,1708161067659,-636.2,0.00051506,60]
[314296854,1708161067670,-951.44,0.00051506,60]
[314296855,1708161067680,-10594.44,0.00051506,60]
[314296856,1708161067690,-500.0,0.00051506,60]
[314296857,1708161067700,-500.0,0.00051506,60]
[314296858,1708161067710,-158.166397,0.00051509,30]
[314296859,1708161067720,-158.166395,0.00051509,30]
[314296860,1708161067729,-174.472826,0.00051509,30]
[314296861,1708161067739,-158.166395,0.00051509,30]
[314296862,1708161067749,-196.409247,0.00051509,30]
[314296863,1708161067758,-607.374,0.00051564,120]
[314296864,1708161067768,-2468.541,0.00051564,120]
[314296865,1708161067777,-708.0,0.00051564,120]
[314296866,1708161067788,-953.0,0.00051564,120]
[314296867,1708161067798,-842.0,0.00051564,2]
[314296868,1708161067807,-216.0,0.00051564,120]
[314296869,1708161067816,-1231.0,0.00051564,120]
[314296870,1708161067826,-1255.0,0.00051564,120]
[314296871,1708161067835,-1949.0,0.00051564,120]
[314296872,1708161067845,-1005.0,0.00051564,120]
[314296873,1708161067854,-237.0,0.00051564,120]
[314296874,1708161067864,-858.0,0.00051564,120]
[314296875,1708161067877,-429.0,0.00051564,120]
[314296876,1708161067887,-1138.0,0.00051564,120]
[314296877,1708161067896,-321.0,0.00051564,120]
[314296878,1708161067906,-2871.0,0.00051564,120]
[314296879,1708161067915,-343.0,0.00051564,120]
[314296880,1708161067924,-160.749,0.00051564,120]
[314296881,1708161067934,-153.62677801,0.00051608,50]
[314296882,1708161067944,-510.36705395,0.0005164,7]
[314296883,1708161067954,-449.01738452,0.0005164,3]
[314296884,1708161067965,-330.83993084,0.0005164,3]
[314296885,1708161067974,-192.01466042,0.0005164,2]
[314296886,1708161067984,-154.92244372,0.0005164,4]
[314296887,1708161067994,-6553.07579447,0.0005164,7]
[314296888,1708161068004,-433.48824531,0.0005164,2]
[314296889,1708161068013,-197.73105661,0.0005164,2]
[314296890,1708161068023,-240.40833081,0.0005164,2]
[314296891,1708161068033,-294.52487377,0.0005164,2]
[314296892,1708161068043,-386.97040683,0.0005164,2]
[314296893,1708161068052,-432.0,0.00051681,30]
[314296894,1708161068062,-197.021777,0.00051748,101]
[314296895,1708161068072,-158.23203844,0.00051759,60]
[314296896,1708161068082,-151.0,0.00051768,2]
[314296897,1708161068091,-574.91,0.0005178,60]